fUST/lending_fUST_20251021
["ID","MTS","AMOUNT","RATE_DAILY","PERIOD"]
[391940711,1761015044832,-161.3960451,0.0003322,5]
[391940712,1761015044841,-160.0,0.0003322,5]
[391940713,1761015044852,-160.0,0.0003322,3]
[391940714,1761015044861,-160.0,0.0003322,5]
[391940715,1761015044872,-173.097524,0.00033222,60]
[391940716,1761015044883,-990.0,0.0003325,3]
[391940717,1761015044893,-26307.86981051,0.0003325,7]
[391940718,1761015044904,-990.0,0.0003325,2]
[391940719,1761015044913,-75114.24,0.00033267,9]
[391940720,1761015044924,-150.0,0.00033273,5]
[391940721,1761015044934,-150.0,0.00033273,5]
[391940722,1761015044945,-254.26083572,0.00033276,4]
[391940723,1761015044955,-154.160189,0.00033276,30]
[391940724,1761015044964,-154.160189,0.00033276,30]
[391940725,1761015044973,-154.160189,0.00033276,30]
[391940726,1761015044982,-154.160189,0.00033276,30]
[391940727,1761015044992,-151.0,0.00033282,30]
[391940728,1761015045001,-151.0,0.00033282,30]
[391940729,1761015045011,-151.0,0.00033282,30]
[391940730,1761015045020,-151.0,0.00033282,30]
[391940731,1761015045029,-151.0,0.00033282,30]
[391940732,1761015045038,-172.999278,0.00033282,30]
[391940733,1761015045048,-172.999278,0.00033282,30]
[391940734,1761015045058,-172.999278,0.00033282,30]
[391940735,1761015045069,-172.99928289,0.00033282,30]
[391940736,1761015045079,-713.97283296,0.00033291,2]
[391940737,1761015045088,-246423.9142996,0.00033298,22]
[391940738,1761015045097,-154.160189,0.00033298,30]
[391940739,1761015045108,-154.160189,0.00033298,30]
[391940740,1761015045117,-154.160189,0.00033298,30]
[391940741,1761015045126,-154.160181,0.00033298,30]
[391940742,1761015045135,-151.0,0.00033298,30]
[391940743,1761015045145,-151.0,0.00033298,30]
[391940744,1761015045155,-151.0,0.00033298,30]
[391940745,1761015045165,-178.022588,0.00033298,30]
[391940746,1761015045175,-277.0,0.000333,7]
[391940747,1761015045185,-1000.0,0.000333,12]
[391940748,1761015045194,-250.0,0.000333,10]
[391940749,1761015045203,-150.519951,0.000333,2]
[391940750,1761015045212,-162.1039,0.000333,2]
[391940751,1761015045223,-200.0,0.00033339,120]
[391940752,1761015045234,-506.74480083,0.0003334,7]
[391940753,1761015045244,-1012.422918,0.0003336,8]
[391940754,1761015045253,-8761.83866256,0.00033367,14]
[391940755,1761015045262,-158.46756255,0.0003337,30]
[391940756,1761015045271,-152.44,0.00033375,60]
[391940757,1761015045280,-1000.0,0.0003338,8]
[391940758,1761015045290,-150.0,0.00033391,2]
[391940759,1761015045298,-150.0,0.00033391,2]
[391940760,1761015045307,-150.0,0.00033391,2]
[391940761,1761015045316,-150.0,0.00033391,2]
[391940762,1761015045325,-2805.62,0.000334,14]
[391940763,1761015045335,-1000.0,0.000334,8]
[391940764,1761015045344,-250.0,0.000334,10]
[391940765,1761015045354,-600.0,0.0003341,2]
[391940766,1761015045363,-184.714067,0.00033417,10]
[391940767,1761015045372,-151.100433,0.00033417,10]
[391940768,1761015045380,-1000.0,0.0003342,8]
[391940769,1761015045391,-1000.0,0.0003344,8]
[391940770,1761015045402,-864.0,0.00033442,30]
[391940771,1761015045411,-1000.0,0.0003346,8]
[391940772,1761015045420,-2261.93167985,0.00033467,2]
[391940773,1761015045431,-150.22440164,0.00033467,118]
[391940774,1761015045444,-6497.8044297,0.00033467,2]
[391940775,1761015045453,-152.44,0.00033475,60]
[391940776,1761015045463,-8300.0,0.0003348,10]
[391940777,1761015045472,-1000.0,0.0003348,8]
[391940778,1761015045482,-24818.08293785,0.000335,30]
[391940779,1761015045546,-160.0,0.00027071,2]
[391940780,1761015045558,-500.0,0.00027397,2]
[391940781,1761015045568,-181.22010289,0.00027397,2]
[391940782,1761015045607,150.0,0.00022269,2]
[391940784,1761015173144,150.0,0.00021883,2]
[391940785,1761015173736,150.0,0.00023872,2]
[391940788,1761015240996,150.0,0.00022009,2]
[391940789,1761015246387,-150.0,0.0002401,2]
[391940790,1761015307677,150.0,0.00021924,2]
[391940791,1761015308112,150.0,0.00023917,2]
[391940793,1761015373834,150.0,0.0002192,2]
[391940794,1761015374278,150.0,0.00023913,2]
[391940800,1761015431641,168.9453855,0.00012927,2]
[391940804,1761015440191,150.0,0.00021953,2]
[391940805,1761015440628,150.0,0.00023948,2]
[391940806,1761015505542,3218.57634498,0.0003013,120]
[391940807,1761015524789,1411.39,0.00024075,2]
[391940808,1761015862868,417.15472785,0.00024075,2]
[391940809,1761015919403,20097.703233,0.0003,120]
[391940831,1761016232037,-150.0,0.00024173,2]
[391940833,1761016232047,-205.51869585,0.00024173,2]
[391940836,1761016232057,-172.5,0.00024773,2]
[391940838,1761016232067,-195.0,0.00025373,2]
[391940840,1761016232076,-217.5,0.00025973,2]
[391940842,1761016232086,-288.7193432,0.00026014,2]
[391940844,1761016232095,-240.0,0.00026573,2]
[391940846,1761016232105,-151.56026,0.000268,3]
[391940848,1761016232115,-300.0,0.00026899,2]
[391940850,1761016232125,-449.09974354,0.000269,2]
[391940853,1761016232142,-2364.60637526,0.000269,2]
[391940855,1761016232152,-2431.80289772,0.000269,2]
[391941409,1761016237965,-505.84190868,0.00026887,2]
[391941411,1761016237975,-31.79943234,0.000269,2]
[391941413,1761016237984,-501.17055692,0.00026973,2]
[391941415,1761016237994,-501.91646558,0.00026973,2]
[391941417,1761016238003,-502.66033995,0.00026973,2]
[391941419,1761016238012,-547.58214394,0.00026973,2]
[391941421,1761016238021,-501.98383308,0.00026973,2]
[391941423,1761016238031,-502.10152879,0.00026973,2]
[391941425,1761016238040,-501.9239716,0.00026973,2]
[391941427,1761016238050,-375.55662658,0.00026973,2]
[391941429,1761016238059,-516.42562343,0.00026973,2]
[391941431,1761016238069,-500.0,0.00026973,2]
[391941433,1761016238078,-501.54477046,0.00026973,2]
[391941435,1761016238089,-515.41987366,0.00026973,2]
[391941437,1761016238099,-507.20431208,0.00026973,2]
[391941438,1761016238108,-166.66,0.00026973,2]
[391941440,1761016238119,-16985.872811,0.00026987,2]
[391941442,1761016238129,-3914.21013144,0.00026987,2]
[391941444,1761016238139,-1498.34,0.00026987,10]
[391941446,1761016238148,-1907.88,0.00026987,10]
[391941448,1761016238158,-203.65555301,0.00026996,2]
[391941450,1761016238168,-389.22431506,0.00026996,2]
[391941452,1761016238178,-500.0,0.00026996,2]
[391941454,1761016238187,-45509.55706193,0.00026997,2]
[391941456,1761016238198,-5231.93822584,0.00026997,2]
[391941459,1761016238209,-360.82507419,0.00026997,2]
[391941461,1761016238221,-318897.67963804,0.00026997,2]
[391941463,1761016238230,-12556.2,0.00027,7]
[391941465,1761016238239,-403.05172659,0.00027,7]
[391941467,1761016238248,-151.56026,0.00027,2]
[391941469,1761016238258,-160.0,0.00027036,2]
[391941471,1761016238267,-403.05172659,0.00027036,2]
[391941472,1761016238277,-160.0,0.00027041,2]
[391941475,1761016238287,-1500.0,0.00027123,30]
[391941476,1761016238296,-1500.0,0.00027123,30]
[391941478,1761016238306,-1075.51623286,0.00027123,30]
[391941480,1761016238315,-262.5,0.00027173,2]
[391941482,1761016238324,-166.66,0.00027247,2]
[391941484,1761016238333,-362.29,0.0002729,2]
[391941486,1761016238342,-500.0,0.00027373,2]
[391941488,1761016238351,-502.72934381,0.00027373,2]
[391941490,1761016238361,-500.0,0.00027373,2]
[391941492,1761016238370,-400.04006914,0.00027373,2]
[391941494,1761016238379,-500.0,0.00027373,2]
[391941496,1761016238388,-500.0,0.00027373,2]
[391941498,1761016238398,-505.59705123,0.00027373,2]
[391941500,1761016238408,-4853.10651742,0.00027387,2]
[391941502,1761016238417,-1118.34575184,0.00027387,2]
[391941504,1761016238426,-2426.55325871,0.0002739,2]
[391941506,1761016238435,-559.17287592,0.0002739,2]
[391941508,1761016238445,-155.401,0.00027396,2]
[391941510,1761016238454,-318.77989711,0.00027397,2]
[391941512,1761016238464,-500.0,0.00027397,2]
[391941514,1761016238474,-500.0,0.00027397,2]
[391941515,1761016238484,-500.0,0.00027397,2]
[391941517,1761016238493,-500.0,0.00027397,2]
[391941518,1761016238503,-500.0,0.00027397,2]
[391941520,1761016238513,-500.0,0.00027397,2]
[391941521,1761016238522,-500.0,0.00027397,2]
[391941523,1761016238531,-500.0,0.00027397,2]
[391941524,1761016238540,-500.0,0.00027397,2]
[391941525,1761016238550,-500.0,0.00027397,2]
[391941527,1761016238560,-500.0,0.00027397,2]
[391941529,1761016238573,-500.0,0.00027397,2]
[391941530,1761016238582,-500.0,0.00027397,2]
[391941532,1761016238592,-500.0,0.00027397,2]
[391941533,1761016238601,-500.0,0.00027397,2]
[391941535,1761016238611,-500.0,0.00027397,2]
[391941536,1761016238620,-500.0,0.00027397,2]
[391941538,1761016238629,-500.0,0.00027397,2]
[391941539,1761016238640,-500.0,0.00027397,2]
[391941541,1761016238650,-500.0,0.00027397,2]
[391941542,1761016238659,-500.0,0.00027397,2]
[391941544,1761016238668,-382.55,0.00027397,2]
[391941545,1761016238678,-500.0,0.00027397,2]
[391941547,1761016238687,-500.0,0.00027397,2]
[391941548,1761016238695,-500.0,0.00027397,2]
[391941550,1761016238705,-500.0,0.00027397,2]
[391941551,1761016238714,-500.0,0.00027397,2]
[391941553,1761016238724,-500.0,0.00027397,2]
[391941554,1761016238733,-500.0,0.00027397,2]
[391941556,1761016238744,-500.0,0.00027397,2]
[391941558,1761016238754,-500.0,0.00027397,2]
[391941559,1761016238763,-500.0,0.00027397,2]
[391941561,1761016238772,-500.0,0.00027397,2]
[391941563,1761016238782,-500.0,0.00027397,2]
[391941564,1761016238791,-500.0,0.00027397,2]
[391941566,1761016238799,-629.60434554,0.00027397,2]
[391941567,1761016238810,-2946.06,0.00027397,2]
[391941569,1761016238820,-2946.06,0.00027397,2]
[391941571,1761016238830,-2946.06,0.00027397,2]
[391941572,1761016238839,-2946.06,0.00027397,2]
[391941574,1761016238848,-2946.06,0.00027397,2]
[391941576,1761016238859,-2946.06,0.00027397,2]
[391941577,1761016238869,-2946.06,0.00027397,2]
[391941579,1761016238878,-2946.06,0.00027397,2]
[391941580,1761016238889,-2946.06,0.00027397,2]
[391941582,1761016238900,-2946.06,0.00027397,2]
[391941583,1761016238909,-2946.06,0.00027397,2]
[391941585,1761016238920,-2946.06,0.00027397,2]
[391941587,1761016238929,-2946.06,0.00027397,2]
[391941588,1761016238939,-2946.06,0.00027397,2]
[391941590,1761016238948,-2946.06,0.00027397,2]
[391941591,1761016238958,-2946.06,0.00027397,2]
[391941593,1761016238969,-2946.06,0.00027397,2]
[391941594,1761016238979,-2946.06,0.00027397,2]
[391941596,1761016238990,-2946.06,0.00027397,2]
[391941598,1761016239001,-2946.06,0.00027397,2]
[391941599,1761016239011,-2946.06,0.00027397,2]
[391941601,1761016239021,-2946.06,0.00027397,2]
[391941603,1761016239035,-2946.06,0.00027397,2]
[391941604,1761016239044,-2946.28363653,0.00027397,2]
[391941606,1761016239053,-1000.0,0.00027397,2]
[391941607,1761016239063,-561.36144824,0.00027397,2]
[391941609,1761016239075,-1000.0,0.00027397,2]
[391941611,1761016239085,-1000.0,0.00027397,2]
[391941612,1761016239095,-1000.0,0.00027397,2]
[391941614,1761016239105,-917.87160162,0.00027397,2]
[391941615,1761016239114,-151.0,0.00027397,2]
[391941617,1761016239124,-151.0,0.00027397,2]
[391941618,1761016239133,-151.73006775,0.00027397,2]
[391941620,1761016239143,-151.0,0.00027397,2]
[391941621,1761016239152,-151.0,0.00027397,2]
[391941623,1761016239162,-151.0,0.00027397,2]
[391941625,1761016239173,-1000.0,0.00027397,2]
[391941626,1761016239183,-1000.0,0.00027397,2]
[391941628,1761016239193,-1000.0,0.00027397,2]
[391941629,1761016239203,-1000.0,0.00027397,2]
[391941631,1761016239213,-1000.0,0.00027397,2]
[391941633,1761016239224,-1000.0,0.00027397,2]
[391941634,1761016239235,-1000.0,0.00027397,2]
[391941636,1761016239246,-1000.0,0.00027397,2]
[391941638,1761016239257,-1000.0,0.00027397,2]
[391941639,1761016239267,-1000.0,0.00027397,2]
[391941641,1761016239277,-1000.0,0.00027397,2]
[391941642,1761016239287,-1000.0,0.00027397,2]
[391941644,1761016239297,-1000.0,0.00027397,2]
[391941646,1761016239307,-1000.0,0.00027397,2]
[391941647,1761016239317,-1000.0,0.00027397,2]
[391941649,1761016239327,-1000.0,0.00027397,2]
[391941650,1761016239337,-235.35184375,0.00027397,2]
[391941652,1761016239347,-151.0,0.00027397,2]
[391941654,1761016239357,-2805.62,0.000274,2]
[391941655,1761016239369,-249.92806897,0.00027452,2]
[391941657,1761016239378,-200.89396378,0.00027452,2]
[391941658,1761016239388,-151.0,0.00027452,2]
[391941660,1761016239398,-151.0,0.00027452,2]
[391941662,1761016239407,-151.0,0.00027452,2]
[391941663,1761016239416,-151.0,0.00027452,2]
[391941665,1761016239425,-151.0,0.00027507,2]
[391941667,1761016239434,-151.0,0.00027507,2]
[391941668,1761016239443,-151.0,0.00027507,2]
[391941670,1761016239452,-151.0,0.00027507,2]
[391941671,1761016239462,-1000.0,0.00027521,5]
[391941673,1761016239471,-166.68,0.00027521,7]
[391941675,1761016239481,-527.879,0.00027532,16]
[391941676,1761016239490,-171.42879238,0.00027532,16]
[391941678,1761016239500,-300.0,0.00027536,30]
[391941679,1761016239509,-300.0,0.00027536,30]
[391941681,1761016239518,-300.0,0.00027536,30]
[391941682,1761016239527,-300.0,0.00027536,30]
[391941683,1761016239536,-300.0,0.00027536,30]
[391941684,1761016239545,-300.0,0.00027536,30]
[391941685,1761016239553,-300.0,0.00027536,30]
[391941686,1761016239563,-300.0,0.00027536,30]
[391941687,1761016239571,-300.0,0.00027536,30]
[391941688,1761016239580,-300.0,0.00027536,30]
[391941689,1761016239590,-300.0,0.00027536,30]
[391941690,1761016239600,-300.0,0.00027536,30]
[391941691,1761016239609,-300.0,0.00027536,30]
[391941692,1761016239618,-300.0,0.00027536,30]
[391941693,1761016239627,-300.0,0.00027536,30]
[391941694,1761016239636,-600.0,0.00027536,30]
[391941695,1761016239645,-161.03137585,0.00027561,2]
[391941696,1761016239654,-151.0,0.00027561,2]
[391941697,1761016239663,-151.0,0.00027561,2]
[391941698,1761016239673,-151.0,0.00027561,2]
[391941699,1761016239682,-246.55921856,0.00027616,2]
[391941700,1761016239692,-247.5403656,0.00027616,2]
[391941702,1761016239702,-151.0,0.00027616,2]
[391941704,1761016239712,-153.79473155,0.00027671,2]
[391941706,1761016239723,-285.0,0.00027773,2]
[391941708,1761016239733,-1000.0,0.00027921,5]
[391941710,1761016239743,-1000.0,0.00027921,5]
[391941712,1761016239754,-1000.0,0.00027921,5]
[391941714,1761016239765,-1000.0,0.00027921,5]
[391941717,1761016239776,-179.67658215,0.00027924,2]
[391941718,1761016239785,-1500.0,0.00028068,5]
[391941720,1761016239795,-5000.0,0.00028212,2]
[391941723,1761016239806,-307.5,0.00028373,2]
[391941724,1761016239816,-160.0,0.00028417,2]
[391941726,1761016239825,-153.0,0.00028424,2]
[391941728,1761016239835,-153.0,0.00028424,2]
[391941731,1761016239845,-153.0,0.00028424,2]
[391941733,1761016239855,-153.0,0.00028424,2]
[391941734,1761016239864,-153.0,0.00028425,2]
[391941736,1761016239873,-153.0,0.00028425,2]
[391941738,1761016239882,-153.0,0.00028425,2]
[391941740,1761016239892,-153.0,0.00028425,2]
[391941742,1761016239901,-153.0,0.00028425,2]
[391941744,1761016239911,-153.0,0.00028425,2]
[391941746,1761016239921,-153.0,0.00028425,2]
[391941748,1761016239930,-153.0,0.00028425,2]
[391941750,1761016239940,-153.0,0.00028425,2]
[391941752,1761016239950,-153.0,0.00028425,2]
[391941754,1761016239959,-153.0,0.00028425,2]
[391941756,1761016239970,-153.0,0.00028425,2]
[391941758,1761016239979,-1500.0,0.00028468,5]
[391941760,1761016239990,-1500.0,0.00028468,5]
[391941763,1761016240001,-1500.0,0.00028468,5]
[391941765,1761016240011,-1500.0,0.00028468,5]
[391941767,1761016240022,-151.56026,0.000285,7]
[391941769,1761016240032,-151.56026,0.000285,3]
[391941771,1761016240042,-2813.7061188,0.00028544,2]
[391941773,1761016240052,-1521.04087006,0.00028616,5]
[391941774,1761016240061,-151.56026,0.00028738,2]
[391941777,1761016240072,-151.100433,0.00028738,2]
[391941779,1761016240081,-160.0,0.0002886,3]
[391941780,1761016240091,-260.0,0.00028965,2]
[391941782,1761016240101,-330.0,0.00028973,2]
[391941785,1761016240110,-2000.0,0.00029016,5]
[391941787,1761016240124,-2000.0,0.00029016,5]
[391941788,1761016240134,-1947.34650959,0.00029016,5]
[391941790,1761016240143,-2000.0,0.00029016,5]
[391941792,1761016240153,-420.0,0.00029084,2]
[391941794,1761016240163,-2805.62,0.000294,2]
[391941797,1761016240177,-360.0,0.00029513,2]
[391941799,1761016240187,-2500.0,0.00029564,5]
[391941801,1761016240196,-2500.0,0.00029564,5]
[391941803,1761016240206,-352.5,0.00029573,2]
[391941804,1761016240216,-25303.29064864,0.000297,2]
[391941807,1761016240229,-151.56026,0.00029802,7]
[391941809,1761016240239,-151.100433,0.00029802,7]
[391941810,1761016240249,-413.181,0.00029887,2]
[391941813,1761016240259,-428.678,0.00029887,2]
[391941814,1761016240269,-4205.0,0.00029887,2]
[391941816,1761016240278,-2426.55325871,0.0002999,2]
[391941819,1761016240288,-559.17287592,0.0002999,2]
[391941821,1761016240298,-246.994,0.0003,2]
[391941822,1761016240307,-1000.0,0.0003,14]
[391941825,1761016240316,-151.0,0.0003,14]
[391941826,1761016240326,-460.0,0.00030061,2]
[391941828,1761016240335,-2019.78145741,0.00030112,5]
[391941831,1761016240345,-3000.0,0.00030112,5]
[391941833,1761016240354,-155.0,0.00030136,2]
[391941834,1761016240364,-500.0,0.00030137,60]
[391941837,1761016240375,-500.0,0.00030137,60]
[391941839,1761016240384,-500.0,0.00030137,60]
[391941841,1761016240393,-500.0,0.00030137,60]
[391941842,1761016240402,-500.0,0.00030137,60]
[391941845,1761016240412,-500.0,0.00030137,60]
[391941846,1761016240422,-500.0,0.00030137,60]
[391941849,1761016240432,-500.0,0.00030137,60]
[391941850,1761016240441,-500.0,0.00030137,60]
[391941852,1761016240451,-500.0,0.00030137,60]
[391941854,1761016240461,-500.0,0.00030137,60]
[391941857,1761016240470,-500.0,0.00030137,60]
[391941858,1761016240480,-172.088702,0.00030137,60]
[391941861,1761016240490,-10000.0,0.00030137,2]
[391941863,1761016240499,-4001.0,0.00030137,2]
[391941865,1761016240510,-633.45323297,0.00030137,2]
[391941867,1761016240519,-572.63994276,0.00030173,5]
[391941869,1761016240528,-500.0,0.00030173,5]
[391941871,1761016240537,-500.0,0.00030173,2]
[391941873,1761016240547,-500.0,0.00030173,5]
[391941874,1761016240556,-502.63578388,0.00030173,4]
[391941876,1761016240565,-500.0,0.00030173,5]
[391941878,1761016240575,-500.0,0.00030173,5]
[391941880,1761016240584,-375.0,0.00030173,2]
[391941882,1761016240593,-2813.7061188,0.00030188,2]
[391941884,1761016240603,-2463.60233005,0.00030188,2]
[391941886,1761016240612,-151.56026,0.000302,3]
[391941888,1761016240621,-151.100433,0.000302,3]
[391941890,1761016240630,-415.0,0.00030277,2]
[391941892,1761016240640,-720.0,0.00030289,30]
[391941894,1761016240650,-12556.2,0.000303,7]
[391941896,1761016240660,-160.0,0.00030401,4]
[391941898,1761016240670,-413.0,0.00030425,2]
[391941900,1761016240681,-414.0,0.00030459,2]
[391941902,1761016240691,-2426.55325871,0.00030467,2]
[391941904,1761016240702,-559.17287592,0.00030467,2]
[391941906,1761016240711,-151.56026,0.00030477,2]
[391941908,1761016240724,-151.100433,0.00030477,2]
[391941910,1761016240733,-413.0,0.00030478,7]
[391941912,1761016240743,-413.0,0.00030502,2]
[391941914,1761016240752,-251.32,0.00030507,2]
[391941916,1761016240762,-150.413,0.00030507,2]
[391941918,1761016240772,-294.903,0.00030507,2]
[391941920,1761016240783,-560.0,0.00030608,2]
[391941922,1761016240792,-414.0,0.00030641,2]
[391941924,1761016240802,-413.0,0.00030645,7]
[391941926,1761016240811,-3500.0,0.0003066,5]
[391941928,1761016240821,-503.36300446,0.00030721,5]
[391941930,1761016240831,-1111.41961782,0.00030721,2]
[391941932,1761016240840,-516.86152017,0.00030721,5]
[391941934,1761016240849,-1000.0,0.00030721,5]
[391941936,1761016240858,-948.06300228,0.00030721,5]
[391941938,1761016240868,-397.5,0.00030773,2]
[391941939,1761016240877,-500.0,0.00030778,7]
[391941942,1761016240887,-2805.62,0.000308,2]
[391941944,1761016240897,-155.95,0.00030827,15]
[391941945,1761016240907,-413.0,0.0003085,2]
[391941948,1761016240916,-151.736,0.00030854,2]
[391941950,1761016240926,-262.513,0.00030854,2]
[391941952,1761016240936,-294.254,0.00030854,2]
[391941954,1761016240945,-632.0,0.00030854,2]
[391941956,1761016240954,-993.117,0.00030854,2]
[391941958,1761016240964,-2164.0,0.00030854,2]
[391941960,1761016240974,-155.95,0.00030927,15]
[391941962,1761016240983,-181.91130196,0.00031,120]
[391941963,1761016240992,-5179.08185769,0.00031,120]
[391941966,1761016241002,-1339.24488544,0.00031,120]
[391941968,1761016241011,-1113.94017139,0.00031,120]
[391941969,1761016241022,-1490.9847906,0.00031,120]
[391941972,1761016241037,-171.60060473,0.00031,120]
[391941974,1761016241047,-401.10852396,0.00031,120]
[391941976,1761016241056,-852.82014543,0.00031,120]
[391941978,1761016241066,-470.16883568,0.00031,120]
[391941980,1761016241078,-169.72275025,0.00031,120]
[391941982,1761016241087,-189.67204078,0.00031,120]
[391941984,1761016241096,-160.0,0.00031,120]
[391941986,1761016241105,-403.05172659,0.00031,120]
[391941988,1761016241116,-1303.9,0.00031,2]
[391941990,1761016241125,-155.95,0.00031027,15]
[391941992,1761016241135,-413.0,0.00031075,2]
[391941994,1761016241144,-151.56026,0.00031104,7]
[391941996,1761016241154,-151.100433,0.00031104,7]
[391941998,1761016241165,-155.95,0.00031127,15]
[391941999,1761016241175,-660.0,0.00031156,2]
[391942001,1761016241184,-500.0,0.00031171,7]
[391942004,1761016241194,-1303.9,0.00031174,2]
[391942006,1761016241204,-4000.0,0.00031208,5]
[391942008,1761016241214,-413.0,0.00031221,2]
[391942010,1761016241224,-155.95,0.00031227,15]
[391942012,1761016241233,-1500.0,0.00031268,5]
[391942014,1761016241243,-414.0,0.00031288,2]
[391942016,1761016241253,-155.95,0.00031327,15]
[391942018,1761016241263,-1303.9,0.00031348,2]
[391942020,1761016241272,-420.0,0.00031373,2]
[391942022,1761016241283,-155.95,0.00031427,15]
[391942024,1761016241292,-587.0,0.00031446,2]
[391942026,1761016241303,-2426.55325871,0.00031512,2]
[391942028,1761016241314,-559.17287592,0.00031512,2]
[391942030,1761016241324,-535.31325015,0.00031512,2]
[391942032,1761016241333,-963.56385027,0.00031512,2]
[391942034,1761016241343,-1713.00240048,0.00031512,2]
[391942036,1761016241354,-2676.56625075,0.00031512,2]
[391942048,1761016241563,-537.62459279,0.00031512,2]
[391942051,1761016241574,-967.72426701,0.00031512,2]
[391942053,1761016241584,-1720.39869692,0.00031512,2]
[391942055,1761016241594,-2688.12296393,0.00031512,2]
[391942057,1761016241603,-3870.89706806,0.00031512,2]
[391942059,1761016241613,-5268.7210093,0.00031512,2]
[391942061,1761016241623,-155.95,0.00031527,15]
[391942063,1761016241633,-1800.0,0.00031582,7]
[391942065,1761016241642,-155.95,0.00031627,15]
[391942067,1761016241652,-503.82281992,0.00031646,7]
[391942069,1761016241661,-158.46756255,0.00031671,30]
[391942071,1761016241670,-403.05172659,0.000317,30]
[391942073,1761016241680,-865.3500477,0.00031704,2]
[391942075,1761016241689,-155.95,0.00031727,15]
[391942077,1761016241699,-1337.9587561,0.00031733,15]
[391942079,1761016241709,-151.0,0.0003175,14]
[391942081,1761016241718,-4500.0,0.00031756,5]
[391942083,1761016241728,-12556.2,0.000318,7]
[391942085,1761016241737,-153.62292,0.000318,30]
[391942087,1761016241746,-154.834159,0.000318,30]
[391942089,1761016241757,-152.923304,0.000318,30]
[391942091,1761016241766,-151.0,0.000318,30]
[391942093,1761016241775,-161.571257,0.000318,30]
[391942095,1761016241784,-153.541629,0.000318,30]
[391942097,1761016241794,-154.160189,0.000318,30]
[391942099,1761016241804,-154.160189,0.000318,30]
[391942101,1761016241813,-154.160189,0.000318,30]
[391942103,1761016241824,-154.160189,0.000318,30]
[391942105,1761016241833,-151.0,0.000318,30]
[391942107,1761016241843,-154.477788,0.000318,30]
[391942109,1761016241852,-172.999278,0.000318,30]
[391942111,1761016241862,-172.999278,0.000318,30]
[391942113,1761016241872,-172.999278,0.000318,30]
[391942115,1761016241881,-1531.45090465,0.00031816,5]
[391942116,1761016241890,-155.95,0.00031827,15]
[391942117,1761016241901,-2813.7061188,0.00031832,2]
[391942118,1761016241910,-500.0,0.00031868,12]
[391942119,1761016241920,-500.0,0.00031868,12]
[391942120,1761016241930,-150.0,0.00031873,5]
[391942121,1761016241939,-150.0,0.00031873,5]
[391942122,1761016241949,-150.0,0.00031873,5]
[391942123,1761016241959,-2426.55325871,0.0003189,2]
[391942124,1761016241971,-559.17287592,0.0003189,2]
[391942125,1761016241980,-181.91130196,0.000319,120]
[391942126,1761016241989,-5179.08185769,0.000319,120]
[391942127,1761016241999,-1339.24488544,0.000319,120]
[391942128,1761016242009,-1113.94017139,0.000319,120]
[391942129,1761016242019,-1490.9847906,0.000319,120]
[391942130,1761016242029,-171.60060473,0.000319,120]
[391942131,1761016242038,-401.10852396,0.000319,120]
[391942132,1761016242048,-852.82014543,0.000319,120]
[391942133,1761016242058,-470.16883568,0.000319,120]
[391942134,1761016242067,-169.72275025,0.000319,120]
[391942135,1761016242077,-189.67204078,0.000319,120]